fUST/lending_fUST_20241106
["ID","MTS","AMOUNT","RATE_DAILY","PERIOD"]
[341367130,1730842239412,-153.0,0.00040219,30]
[341367131,1730842239422,-153.0,0.00040219,30]
[341367132,1730842239431,-153.0,0.00040219,30]
[341367133,1730842239443,-153.0,0.00040219,30]
[341367134,1730842239453,-310.1768559,0.00040219,30]
[341367135,1730842239463,-600.0,0.00040319,2]
[341367136,1730842239472,-1000.0,0.00040342,5]
[341367137,1730842239482,-151.6608739,0.00040475,30]
[341367138,1730842239492,-1293.55,0.00040593,120]
[341367139,1730842239501,-5000.0,0.00040683,120]
[341367140,1730842239511,-5000.0,0.00040683,120]
[341367141,1730842239521,-23398.92415995,0.00040684,2]
[341367142,1730842239531,-1199.42896407,0.00040739,2]
[341367143,1730842239542,-10000.0,0.00040926,4]
[341367144,1730842239552,-164.875,0.0004095,30]
[341367145,1730842239562,-5315.88273489,0.00040995,2]
[341367146,1730842239573,-500.0,0.00040995,2]
[341367147,1730842239583,-161.0,0.00041,14]
[341367148,1730842239593,-800.0,0.00041,120]
[341367149,1730842239604,-500.0,0.00041,64]
[341367150,1730842239613,-27680.9582374,0.00041,2]
[341367151,1730842239623,-500.0,0.00041073,5]
[341367152,1730842239634,-256.04624789,0.00041073,5]
[341367153,1730842239645,-391.37407504,0.00041073,5]
[341367154,1730842239655,-500.0,0.00041073,5]
[341367155,1730842239666,-500.0,0.00041073,5]
[341367156,1730842239676,-505.67176339,0.00041073,5]
[341367157,1730842239690,-500.0,0.00041073,5]
[341367158,1730842239700,-500.0,0.00041073,5]
[341367159,1730842239709,-173.85910009,0.00041073,5]
[341367161,1730842239720,-500.0,0.00041073,5]
[341367163,1730842239729,-501.5204398,0.00041073,5]
[341367165,1730842239739,-260.48768874,0.00041073,5]
[341367167,1730842239748,-5000.0,0.00041084,120]
[341367169,1730842239758,-600.0,0.00041092,2]
[341367170,1730842239768,-93.06773794,0.00041093,120]
[341367182,1730842240392,-500.0,0.00041093,120]
[341367192,1730842243350,-500.0,0.00041073,5]
[341367193,1730842243362,-374.88,0.00041084,10]
[341367194,1730842243373,-4406.93226206,0.00041093,120]
[341367195,1730842243384,-500.0,0.00041094,2]
[341367196,1730842243394,-500.0,0.00041094,7]
[341367197,1730842243405,-500.0,0.00041094,7]
[341367198,1730842243414,-500.0,0.00041094,7]
[341367199,1730842243424,-500.0,0.00041094,7]
[341367200,1730842243434,-500.0,0.00041094,7]
[341367201,1730842243444,-500.0,0.00041094,7]
[341367202,1730842243454,-595.21634557,0.00041094,7]
[341367203,1730842243463,-1000.0,0.00041094,120]
[341367204,1730842243473,-324.6243,0.00041094,120]
[341367205,1730842243484,-5000.0,0.00041094,120]
[341367206,1730842243494,-5000.0,0.00041094,120]
[341367207,1730842243506,-1105.00888633,0.00041094,120]
[341367208,1730842243518,-441.12992164,0.00041094,31]
[341367209,1730842243529,-468.9391552,0.00041094,31]
[341367210,1730842243538,-359.70831005,0.00041094,31]
[341367211,1730842243549,-468.62613551,0.00041094,31]
[341367212,1730842243559,-74.49920261,0.00041094,31]
[341367215,1730842246523,-191.40998951,0.00041094,31]
[341367216,1730842246535,-133.39844278,0.00041094,31]
[341367217,1730842246545,-214.24796127,0.00041095,120]
[341367218,1730842247307,-173.4688726,0.00041095,120]
[341367219,1730842247317,-405.65601356,0.00041095,14]
[341367220,1730842250590,1169.51103195,0.00033972,120]
[341367221,1730842250612,155.81896805,0.00033972,120]
[341367222,1730842250978,128.05383935,0.00034931,120]
[341367232,1730842674029,168.755024,0.00013973,2]
[341367233,1730842789188,520.83333333,0.00020816,2]
[341367240,1730843147166,-5285.589947,0.000287,2]
[341367241,1730843147189,-151.0,0.0003,120]
[341367242,1730843147211,-151.0,0.0003,120]
[341367243,1730843147232,-198.39,0.0003,2]
[341367244,1730843147256,-6047.6842946,0.00031734,61]
[341367245,1730843147277,-399.7613039,0.00031971,2]
[341367246,1730843147301,-400.0,0.00032271,2]
[341367247,1730843147322,-151.0,0.00032849,120]
[341367248,1730843147344,-500.0,0.00032876,7]
[341367249,1730843147364,-325.525069,0.00032954,2]
[341367250,1730843147386,-176.966331,0.00033118,120]
[341367251,1730843147409,-1301.1065956,0.00033202,2]
[341367252,1730843147430,-911.852263,0.00033273,2]
[341367253,1730843147455,-153.46,0.000335,31]
[341367254,1730843147480,-153.46,0.000335,31]
[341367255,1730843147503,-153.46,0.000335,31]
[341367256,1730843147524,-500.0,0.00033698,10]
[341367257,1730843147546,-151.0,0.00033753,120]
[341367258,1730843147570,-250.0,0.0003378,7]
[341367259,1730843147591,-219.2571329,0.0003378,7]
[341367260,1730843147613,-500.0,0.0003378,7]
[341367261,1730843147635,-405.80152737,0.0003378,7]
[341367262,1730843147660,-153.01755242,0.0003378,7]
[341367263,1730843147681,-156.65758258,0.0003378,7]
[341367264,1730843147703,-520.83333333,0.0003378,2]
[341367265,1730843147725,-7883.4745273,0.00033781,2]
[341367266,1730843147840,-911.852263,0.00033957,2]
[341367267,1730843147862,-162.489284,0.00034085,2]
[341367268,1730843147884,-164.077106,0.00034399,2]
[341367269,1730843147913,-168.755024,0.00034475,2]
[341367270,1730843147934,-164.077106,0.00034571,2]
[341367271,1730843147955,-911.852263,0.00034642,2]
[341367272,1730843147977,-200.0,0.000347,2]
[341367273,1730843147997,-189.0,0.00035,2]
[341367274,1730843148020,-5000.0,0.00035337,120]
[341367275,1730843148044,-153.46,0.000356,31]
[341367276,1730843148068,-153.46,0.000356,31]
[341367277,1730843148092,-153.46,0.000356,31]
[341367278,1730843148115,-153.46,0.000356,31]
[341367279,1730843148140,-153.46,0.000356,31]
[341367280,1730843148164,-153.46,0.000356,31]
[341367281,1730843148188,-151.0,0.00035699,120]
[341367282,1730843148209,-190.0,0.00035707,7]
[341367283,1730843148232,-165.0,0.00036,2]
[341367284,1730843148253,-500.0,0.00036208,7]
[341367285,1730843148274,-505.07280623,0.00037168,7]
[341367286,1730843148295,-515.72642234,0.00037341,7]
[341367287,1730843148316,-500.0,0.00037361,7]
[341367288,1730843148337,-165.0,0.00037397,2]
[341367289,1730843148358,-151.0,0.00037507,120]
[341367290,1730843148383,-153.46,0.000377,31]
[341367291,1730843148406,-153.46,0.000377,31]
[341367292,1730843148430,-153.46,0.000377,31]
[341367293,1730843148454,-153.46,0.000377,31]
[341367294,1730843148478,-153.46,0.000377,31]
[341367295,1730843148502,-153.46,0.000377,31]
[341367296,1730843148524,-500.0,0.00037854,7]
[341367297,1730843148546,-189.0,0.00038,2]
[341367298,1730843148567,-505.1203213,0.00038049,7]
[341367299,1730843148590,-1686.99852063,0.000381,2]
[341367300,1730843148612,-1633.9975729,0.000382,109]
[341367301,1730843148633,-1633.99757289,0.000382,109]
[341367302,1730843148658,-1633.99757289,0.000382,109]
[341367303,1730843148681,-500.0,0.00038335,7]
[341367304,1730843148702,-151.0,0.00038548,120]
[341367305,1730843148723,-1686.99852057,0.00038643,2]
[341367306,1730843148745,-1633.99757289,0.000389,114]
[341367307,1730843148770,-5000.0,0.00038998,120]
[341367308,1730843148791,-600.0,0.00038999,2]
[341367309,1730843148812,-1686.99852057,0.00039186,2]
[341367310,1730843148835,-500.0,0.00039397,7]
[341367311,1730843148859,-153.46,0.000397,31]
[341367312,1730843148882,-153.46,0.000397,31]
[341367313,1730843148905,-153.46,0.000397,31]
[341367314,1730843148927,-153.46,0.000397,31]
[341367315,1730843148951,-153.46,0.000397,31]
[341367316,1730843148975,-153.46,0.000397,31]
[341367317,1730843148996,-1686.99852057,0.00039729,2]
[341367318,1730843149017,-504.84217309,0.00039763,7]
[341367319,1730843149038,-509.570862,0.000399,2]
[341367320,1730843149057,-152.17662963,0.000399,32]
[341367321,1730843149079,-500.0,0.00040108,2]
[341367322,1730843149100,-500.0,0.00040108,7]
[341367323,1730843149120,-500.0,0.00040108,7]
[341367324,1730843149141,-460.07912299,0.00040108,7]
[341367325,1730843154103,-336.02816718,0.00031187,2]
[341367370,1730843188147,164.970223,0.00013973,2]
[341367371,1730843230082,-520.83333333,0.00028594,2]
[341367372,1730843230103,-151.2,0.00035,2]
[341367373,1730843230124,-168.364289,0.00036498,2]
[341367374,1730843230146,-198.60963832,0.00036546,2]
[341367375,1730843233091,-153.429888,0.00035736,2]
[341367376,1730843233113,-30.35624921,0.00036546,2]
[341367377,1730843242126,-171.03411247,0.00036546,2]
[341367378,1730843242149,-400.0,0.00036546,2]
[341367379,1730843242175,-5.91109783,0.00036547,2]
[341367380,1730843249095,-335.0,0.00035664,7]
[341367381,1730843249198,-14414.505466,0.00036547,2]
[341367382,1730843345103,-500.0,0.00032876,7]
[341367383,1730843345124,-500.0,0.00032876,7]
[341367384,1730843345145,-550.14477411,0.00032876,7]
[341367385,1730843345166,-240.0,0.00034473,2]
[341367386,1730843345192,-3247.57125807,0.00034474,120]
[341367387,1730843351103,-150.0,0.00034473,2]
[341367388,1730843351124,-1752.42874193,0.00034474,120]
[341367389,1730843351144,-150.0,0.00035,2]
[341367390,1730843351166,-293.278663,0.00035736,2]
[341367391,1730843351188,-293.278663,0.00036182,2]
[341367392,1730843351211,-185.24151447,0.00036547,2]
[341367393,1730843352130,-1355.6480323,0.00036547,2]
[341367394,1730843352151,-160.0,0.00036599,3]
[341367395,1730843352172,-293.278663,0.00036629,2]
[341367396,1730843358084,176.966331,0.00032877,120]
[341367397,1730843407742,834.5368881,0.00036897,2]
[341367398,1730843415247,150.0,0.00035,2]
[341367436,1730843432490,-293.278663,0.00037076,2]
[341367437,1730843432500,-500.0,0.00037304,7]
[341367438,1730843432511,-153.429888,0.00037522,2]
[341367439,1730843432521,-293.278663,0.00037522,2]
[341367440,1730843432530,-150.0,0.00038,2]
[341367441,1730843432540,-500.0,0.00038356,2]
[341367442,1730843432549,-501.84834968,0.00038449,7]
[341367443,1730843432558,-708.93766037,0.00038702,112]
[341367444,1730843432567,-918.39620367,0.00038802,7]
[341367445,1730843432577,-2821.86072663,0.00038998,120]
[341367446,1730843432587,-160.0,0.00039299,4]
[341367447,1730843432596,-161.968,0.000397,14]
[341367448,1730843432606,-500.0,0.00039726,2]
[341367449,1730843432615,-509.570863,0.000399,2]
[341367450,1730843432626,-1211.03128397,0.00039907,24]
[341367451,1730843432635,-600.0,0.00040319,2]
[341367452,1730843432645,-311.3565044,0.00040477,30]
[341367453,1730843432655,-1472.9,0.00040683,120]
[341367454,1730843432665,-33253.80723431,0.00040684,2]
[341367455,1730843432675,-443.70000004,0.00040684,2]
[341367456,1730843432685,-11256.9249271,0.00040684,2]
[341367458,1730843432697,-23398.92415995,0.00040684,2]
[341367459,1730843432708,-1199.42896407,0.00040739,2]
[341367460,1730843432718,-1351.031201,0.00040989,44]
[341367461,1730843432728,-1020.87220832,0.00040995,2]
[341367463,1730843432739,-4784.29446132,0.00040995,2]
[341367465,1730843432749,-500.0,0.00040995,2]
[341367467,1730843432761,-1000.0,0.00040995,2]
[341367468,1730843432771,-500.0,0.00041,64]
[341367470,1730843432783,-160.0,0.00041,14]
[341367471,1730843432794,-161.915,0.00041023,120]
[341367472,1730843432805,-153.0,0.00041041,2]
[341367473,1730843432818,-153.0,0.00041041,2]
[341367474,1730843432834,-153.0,0.00041041,2]
[341367475,1730843432845,-162.35870745,0.00041073,5]
[341367476,1730843432856,-595.39171036,0.00041073,5]
[341367477,1730843432867,-260.48768874,0.00041073,5]
[341367478,1730843432877,-256.04624789,0.00041073,5]
[341367479,1730843432888,-391.37407504,0.00041073,5]
[341367480,1730843432901,-501.5204398,0.00041073,5]
[341367481,1730843432911,-437.05161622,0.00041073,5]
[341367482,1730843432921,-500.0,0.00041073,5]
[341367483,1730843432931,-533.03,0.00041084,10]
[341367484,1730843432942,-444.2,0.00041084,10]
[341367485,1730843432953,-370.16,0.00041084,10]
[341367486,1730843432964,-1000.0,0.00041094,2]
[341367487,1730843432975,-1000.0,0.00041094,2]
[341367488,1730843432986,-1000.0,0.00041094,2]
[341367489,1730843432996,-1000.0,0.00041094,2]
[341367490,1730843433008,-1000.0,0.00041094,2]
[341367491,1730843433018,-1000.0,0.00041094,2]
[341367492,1730843433029,-176.03445442,0.00041094,2]
[341367493,1730843433098,-600.0,0.00041094,2]
[341367494,1730843433125,-1000.0,0.00041095,120]
[341367495,1730843433135,-501.29232338,0.00041095,14]
[341367496,1730843433145,-500.0,0.00041095,14]
[341367497,1730843433154,-600.24762725,0.00041095,14]
[341367498,1730843433164,-500.0,0.00041095,14]
[341367499,1730843433173,-501.66936704,0.00041095,14]
[341367500,1730843433182,-500.0,0.00041095,14]
[341367501,1730843433191,-500.0,0.00041095,14]
[341367502,1730843433201,-508.47452684,0.00041095,14]
[341367503,1730843433210,-529.52532255,0.00041095,14]
[341367504,1730843433219,-574.16519637,0.00041095,14]
[341367505,1730843433228,-500.0,0.00041095,14]
[341367506,1730843433238,-500.0,0.00041095,14]
[341367507,1730843433247,-500.0,0.00041095,14]
[341367508,1730843433257,-559.51042987,0.00041095,14]
[341367509,1730843433266,-372.52263739,0.00041095,14]
[341367510,1730843433275,-500.0,0.00041095,14]
[341367511,1730843433285,-500.0,0.00041095,14]
[341367512,1730843433294,-500.0,0.00041095,14]
[341367513,1730843433303,-522.23951348,0.00041095,14]
[341367514,1730843433312,-500.0,0.00041095,14]
[341367515,1730843433323,-449.72670082,0.00041095,14]
[341367516,1730843433334,-522.20351646,0.00041095,14]
[341367517,1730843433344,-500.0,0.00041095,14]
[341367518,1730843433353,-512.46391444,0.00041095,14]
[341367519,1730843433363,-501.04537796,0.00041095,14]
[341367520,1730843433373,-500.0,0.00041095,14]
[341367521,1730843433385,-501.53042447,0.00041095,14]
[341367522,1730843433395,-500.0,0.00041095,14]
[341367523,1730843433405,-507.9823009,0.00041095,14]
[341367524,1730843433414,-518.02254518,0.00041095,14]
[341367525,1730843433425,-500.0,0.00041095,14]
[341367526,1730843433434,-500.0,0.00041095,14]
[341367527,1730843433443,-282.74434861,0.00041095,14]
[341367528,1730843433453,-509.56870581,0.00041095,14]
[341367529,1730843433462,-500.0,0.00041095,14]
[341367530,1730843433472,-525.84708471,0.00041095,14]
[341367531,1730843433482,-500.0,0.00041095,14]
[341367532,1730843433492,-530.023277,0.00041095,14]
[341367533,1730843433501,-500.0,0.00041095,14]
[341367534,1730843433511,-500.0,0.00041095,14]
[341367535,1730843433521,-500.0,0.00041095,14]
[341367536,1730843433531,-500.0,0.00041095,14]
[341367537,1730843433542,-103.3899854,0.00041095,14]
[341367538,1730843433667,-396.6100146,0.00041095,14]
[341367539,1730843433677,-500.0,0.00041095,14]
[341367540,1730843433688,-500.0,0.00041095,14]
[341367541,1730843433697,-500.0,0.00041095,14]
[341367542,1730843433707,-516.56675169,0.00041095,14]
[341367543,1730843433717,-516.05753601,0.00041095,14]
[341367544,1730843433726,-697.54375257,0.00041095,2]
[341367545,1730843433736,-515.23362117,0.00041095,14]
[341367546,1730843433746,-288.43515908,0.00041095,14]
[341367547,1730843433757,-504.60785418,0.00041095,14]
[341367548,1730843433767,-565.09796125,0.00041095,14]
[341367549,1730843433777,-500.0,0.00041095,14]
[341367550,1730843433786,-500.0,0.00041095,14]
[341367551,1730843433796,-500.0,0.00041095,14]
[341367552,1730843433806,-500.0,0.00041095,14]
[341367553,1730843433816,-500.0,0.00041095,14]
[341367554,1730843433829,-500.0,0.00041095,14]
[341367555,1730843433838,-500.0,0.00041095,14]
[341367556,1730843433848,-500.0,0.00041095,14]
[341367557,1730843433857,-500.0,0.00041095,14]
[341367558,1730843433867,-500.0,0.00041095,14]
[341367559,1730843433877,-500.0,0.00041095,14]
[341367560,1730843433887,-500.0,0.00041095,14]
[341367561,1730843433896,-530.80438498,0.00041095,14]
[341367562,1730843433906,-608.386858,0.00041095,14]
[341367563,1730843433917,-523.55046625,0.00041095,14]
[341367564,1730843433927,-510.05901299,0.00041095,14]
[341367565,1730843433937,-506.29511336,0.00041095,14]
[341367566,1730843433947,-508.85776512,0.00041095,14]
[341367567,1730843433957,-510.10583659,0.00041095,14]
[341367568,1730843433966,-500.0,0.00041095,14]
[341367569,1730843433976,-500.0,0.00041095,14]
[341367570,1730843433985,-504.06978989,0.00041095,14]
[341367571,1730843433995,-500.0,0.00041095,14]
[341367572,1730843434004,-500.0,0.00041095,14]
[341367573,1730843434014,-500.0,0.00041095,14]
[341367574,1730843434023,-500.0,0.00041095,14]
[341367575,1730843434032,-500.0,0.00041095,14]
[341367576,1730843434041,-500.0,0.00041095,14]
[341367577,1730843434051,-500.0,0.00041095,14]
[341367578,1730843434060,-531.29678774,0.00041095,14]
[341367579,1730843434070,-504.75511089,0.00041095,14]
[341367580,1730843434079,-368.41315284,0.00041095,14]
[341367581,1730843434088,-507.16075426,0.00041095,14]
[341367582,1730843434098,-500.0,0.00041095,5]
[341367583,1730843434108,-500.54403551,0.00041095,5]
[341367584,1730843434119,-504.31928706,0.00041095,14]
[341367585,1730843434129,-500.0,0.00041095,14]
[341367586,1730843434138,-263.69592161,0.00041095,14]
[341367587,1730843434147,-501.82290906,0.00041095,14]
[341367588,1730843434157,-512.75098867,0.00041095,14]
[341367589,1730843434167,-500.0,0.00041095,14]
[341367590,1730843434176,-500.0,0.00041095,14]
[341367591,1730843434185,-517.97887837,0.00041095,14]
[341367592,1730843434195,-500.0,0.00041095,14]
[341367593,1730843434204,-506.56757609,0.00041095,14]
[341367594,1730843434214,-512.31636041,0.00041095,14]
[341367595,1730843434223,-500.0,0.00041095,14]
[341367596,1730843434233,-500.0,0.00041095,14]
[341367597,1730843434243,-500.0,0.00041095,14]
[341367598,1730843434253,-500.0,0.00041095,14]
[341367599,1730843434263,-500.0,0.00041095,14]
[341367600,1730843434273,-500.0,0.00041095,14]
[341367601,1730843434282,-500.0,0.00041095,14]
[341367602,1730843434292,-504.07791051,0.00041095,14]
[341367603,1730843434302,-500.0,0.00041095,14]
[341367604,1730843434312,-331.81604586,0.00041095,14]
[341367605,1730843434389,-500.0,0.00041095,14]
[341367606,1730843434401,-500.0,0.00041095,14]
[341367607,1730843434411,-510.81528325,0.00041095,14]
[341367608,1730843434420,-0.38712014,0.00041095,14]
[341367637,1730843438871,-708.93766033,0.00039502,117]
[341367638,1730843438882,-500.0,0.00040269,31]
[341367639,1730843438892,-500.0,0.00040269,31]
[341367640,1730843438902,-500.0,0.00040269,31]
[341367641,1730843438912,-500.0,0.00040269,31]
[341367642,1730843438922,-326.34698336,0.00040269,31]
[341367643,1730843438932,-708.93766033,0.00040301,120]
[341367644,1730843438943,-500.0,0.00041073,5]
[341367645,1730843438952,-500.0,0.00041073,5]
[341367646,1730843438962,-500.0,0.00041073,2]
[341367647,1730843438972,-308.47,0.00041084,10]
[341367648,1730843438981,-499.61287986,0.00041095,14]
[341367649,1730843438991,-375.07335917,0.00041095,14]
[341367650,1730843438999,-513.8951401,0.00041095,14]
[341367651,1730843439009,-509.06691694,0.00041095,14]
[341367652,1730843439018,-501.79310876,0.00041095,14]
[341367653,1730843439028,-507.54034734,0.00041095,14]
[341367654,1730843439037,-514.12348022,0.00041095,14]
[341367655,1730843439047,-506.54224671,0.00041095,14]
[341367656,1730843439057,-508.00597934,0.00041095,14]
[341367657,1730843439066,-344.54970894,0.00041095,14]
[341367658,1730843439075,-503.18959179,0.00041095,14]
[341367659,1730843439085,-500.0,0.00041095,14]
[341367660,1730843439094,-500.0,0.00041095,14]
[341367661,1730843439103,-500.0,0.00041095,14]
[341367662,1730843439113,-500.0,0.00041095,14]
[341367663,1730843439122,-503.73895507,0.00041095,14]
[341367664,1730843439133,-500.0,0.00041095,14]
[341367665,1730843439144,-182.25466372,0.00041095,14]
[341367666,1730843439153,-500.0,0.00041095,14]
[341367667,1730843439163,-500.0,0.00041095,14]
[341367668,1730843439173,-501.56800331,0.00041095,14]
[341367669,1730843439182,-298.64788567,0.00041095,14]
[341367670,1730843439192,-500.0,0.00041095,14]
[341367671,1730843439203,-180.16609081,0.00041095,14]
[341367672,1730843439214,-356.93186053,0.00041095,14]
[341367673,1730843439226,-507.7027929,0.00041095,14]
[341367674,1730843439235,-500.0,0.00041095,14]
[341367675,1730843439244,-500.0,0.00041095,14]
[341367676,1730843439253,-502.05354836,0.00041095,14]
[341367677,1730843439263,-517.24187983,0.00041095,14]
[341367678,1730843439273,-427.41509543,0.00041095,14]
[341367679,1730843439283,-606.0298968,0.00041095,14]
[341367680,1730843439292,-500.0,0.00041095,14]
[341367681,1730843439301,-601.33586745,0.00041095,14]
[341367682,1730843439310,-508.485802,0.00041095,14]
[341367683,1730843439319,-151.0,0.00041095,14]
[341367684,1730843439395,-500.0,0.00041095,7]
[341367685,1730843439405,-500.0,0.00041095,7]
[341367686,1730843439414,-500.0,0.00041095,7]
[341367687,1730843439424,-500.0,0.00041095,7]
[341367688,1730843439433,-500.0,0.00041095,7]
[341367689,1730843439443,-500.0,0.00041095,7]
[341367690,1730843439453,-500.0,0.00041095,14]
[341367691,1730843439462,-500.0,0.00041095,7]
[341367692,1730843439472,-500.0,0.00041095,14]
[341367693,1730843439481,-500.0,0.00041095,7]
[341367694,1730843439490,-500.0,0.00041095,14]
[341367695,1730843439499,-500.0,0.00041095,14]
[341367696,1730843439508,-500.0,0.00041095,7]
[341367697,1730843439518,-512.36061947,0.00041095,7]
[341367698,1730843439526,-500.0,0.00041095,14]
[341367699,1730843439536,-500.0,0.00041095,14]
[341367700,1730843439545,-500.0,0.00041095,14]
[341367701,1730843439554,-500.0,0.00041095,14]
[341367702,1730843439563,-300.0,0.00041095,14]
[341367703,1730843439572,-500.0,0.00041095,14]
[341367704,1730843439582,-515.9757387,0.00041095,14]
[341367705,1730843439591,-505.67905592,0.00041095,14]
[341367706,1730843439600,-239.13441515,0.00041095,14]
[341367707,1730843439938,-260.86558485,0.00041095,14]
[341367708,1730843439948,-377.49692992,0.00041095,14]
[341367709,1730843439957,-500.0,0.00041095,14]
[341367710,1730843439966,-500.0,0.00041095,14]
[341367711,1730843439975,-323.47360671,0.00041095,14]
[341367712,1730843439984,-500.0,0.00041095,14]
[341367713,1730843439993,-647.39975741,0.00041095,14]
[341367714,1730843440002,-500.0,0.00041095,14]
[341367715,1730843440011,-500.0,0.00041095,14]
[341367716,1730843440020,-500.0,0.00041095,14]
[341367717,1730843440029,-286.91918854,0.00041095,14]
[341367754,1730843443568,-213.08081146,0.00041095,14]
[341367755,1730843443577,-230.61918858,0.00041095,14]
[341367756,1730843444675,-269.38081142,0.00041095,14]
[341367757,1730843444685,-291.30653572,0.00041095,14]
[341367758,1730843444694,-500.0,0.00041095,14]
[341367759,1730843444703,-506.26049178,0.00041095,14]
[341367760,1730843444713,-511.2470745,0.00041095,14]
[341367761,1730843444723,-505.74164732,0.00041095,14]
[341367762,1730843444732,-500.0,0.00041095,14]
[341367763,1730843444742,-500.0,0.00041095,14]
[341367764,1730843444753,-501.0,0.00041095,14]
[341367765,1730843444763,-506.10672077,0.00041095,14]
[341367766,1730843444772,-151.0,0.00041095,14]
[341367767,1730843444781,-500.0,0.00041095,14]
[341367768,1730843444791,-500.0,0.00041095,14]
[341367769,1730843444800,-500.0,0.00041095,14]
[341367770,1730843444809,-159.18465834,0.00041095,14]
[341367771,1730843444819,-500.0,0.00041095,14]
[341367772,1730843444834,-324.68908432,0.00041095,14]
[341367773,1730843446586,-175.31091568,0.00041095,14]
[341367774,1730843446596,-500.0,0.00041095,14]
[341367775,1730843446606,-500.0,0.00041095,14]
[341367776,1730843446615,-500.0,0.00041095,14]
[341367777,1730843446625,-593.12653064,0.00041095,14]
[341367778,1730843446641,-500.0,0.00041095,14]
[341367779,1730843446651,-503.92537894,0.00041095,14]
[341367780,1730843446661,-508.81686657,0.00041095,14]
[341367781,1730843446670,-504.70466135,0.00041095,14]
[341367782,1730843446680,-502.11619008,0.00041095,14]
[341367783,1730843446690,-233.55495187,0.00041095,14]
[341367784,1730843446700,-500.0,0.00041095,14]
[341367785,1730843446711,-500.0,0.00041095,14]
[341367786,1730843446721,-500.0,0.00041095,14]
[341367787,1730843446731,-522.15716001,0.00041095,14]
[341367788,1730843446742,-500.0,0.00041095,14]
[341367789,1730843446752,-410.0733229,0.00041095,14]
[341367790,1730843446762,-502.6910432,0.00041095,14]
[341367791,1730843446772,-500.0,0.00041095,14]
[341367792,1730843446781,-500.0,0.00041095,14]
[341367793,1730843446791,-500.0,0.00041095,14]
[341367794,1730843446801,-500.0,0.00041095,14]
[341367795,1730843446810,-500.0,0.00041095,14]
[341367796,1730843446819,-500.0,0.00041095,14]
[341367797,1730843446831,-502.94958202,0.00041095,10]
[341367798,1730843446840,-75.85156493,0.00041095,14]
[341367801,1730843446856,-424.14843507,0.00041095,14]
[341367802,1730843446865,-500.0,0.00041095,14]
[341367804,1730843446875,-500.0,0.00041095,14]
[341367805,1730843446887,-96.61446893,0.00041095,14]
[341367844,1730843463057,165.951273,0.00035736,2]
[341367845,1730843470698,185.389682,0.00035736,2]
[341367846,1730843540606,151.0,0.0003,120]
[341367847,1730843541198,31.80282017,0.00033151,120]
[341367849,1730843675133,169.031259,0.00013973,2]
[341367851,1730843952756,520.83333333,0.00020816,2]
[341367856,1730844429106,-150.0,0.00024658,2]
[341367857,1730844429142,-745.35,0.00025,90]
[341367858,1730844429166,-520.83333333,0.00025546,2]
[341367859,1730844429189,-300.0,0.00028699,2]
[341367860,1730844429213,-3328.36454676,0.000287,2]
[341367861,1730844448085,-520.83333333,0.0002397,2]
[341367862,1730844448111,-477.99503529,0.000287,2]
[341367863,1730844448142,-348.76571073,0.000287,2]
[341367864,1730844449113,-322.26065059,0.000287,2]
[341367867,1730844556139,-520.83333333,0.00022393,2]
[341367868,1730844556165,-170.0,0.00024658,2]
[341367869,1730844556189,-687.77173263,0.000287,2]
[341367870,1730844556212,-119.19717983,0.00033151,120]